Workbook

Sheet Sheet1
B1: Inputs | C1: Reset | D1: Tax Transfer and Inequity Calculator: Rates, Userpay-Taxes, and Fixed Charges on Public Resources (Education, Health, Water, Roads, Rubbish Disposal, Petrol/Eco Taxes, GST, etc.) Copyright C.e.r.e.s 2006
A2: Input Baseline Income [Default=$1 Billion] | B2: 1000000000
A3: Input Income level [Default=$10,000] | B3: 10000
A4: Input Fixed charge [Default =$ 27,500] | B4: 27500
A5: Column Display Buttons: Left=on Right=off | B5: =IF(AND(B3="B"),B3,"B.") -> B. | C5: =IF(AND(B3="C"),B3,"C.") -> C. | D5: =IF(AND(B3="D"),B3,"D.") -> D. | E5: =IF(AND(B3="E"),B3,"E.") -> E. | F5: =IF(AND(B3="F"),B3,"F.") -> F. | G5: =IF(AND(B3="G"),B3,"G.") -> G. | H5: =IF(AND(B3="H"),B3,"H.") -> H. | I5: =IF(AND(B3="I"),B3,"I.") -> I. | J5: =IF(AND(B3="J"),B3,"J.") -> J. | K5: =IF(AND(B3="K"),B3,"K.") -> K.
A6: Income categories | B6: $1-$9 | C6: $10-$99 | D6: $100-$999 | E6: $1000-$9,999 | F6: $10,000 - $99,999 | G6: $100,000 - $999,999 | H6: $1,000,000 - $9,999,999 | I6: $10,000,000 - $99,999,999 | J6: $100,000,000 - $999,999,999 | K6: $1,000,000,000 - $9,999,999,999 +
K7: K
A8: Fixed charge | B8: =K8 -> 27500 | C8: =K8 -> 27500 | D8: =K8 -> 27500 | E8: =K8 -> 27500 | F8: =K8 -> 27500 | G8: =K8 -> 27500 | H8: =K8 -> 27500 | I8: =K8 -> 27500 | J8: =K8 -> 27500 | K8: =B4 -> 27500
A10: Exact dollar amount compared | B10: =IF(AND(1<B3, B3<=9),B3, 1) -> 1 | C10: =IF(AND(10<B3, B3<=99),B3, 10) -> 10 | D10: =IF(AND(100<B3, B3<=999),B3, 100) -> 100 | E10: =IF(AND(1000<B3, B3<=9999),B3, 1000) -> 1000 | F10: =IF(AND(10000<B3, B3<=99999),B3, 10000) -> 10000 | G10: =IF(AND(100000<B3, B3<=999999),B3, 100000) -> 100000 | H10: =IF(AND(1000000<B3, B3<=9999999),B3, 1000000) -> 1000000 | I10: =IF(AND(10000000<B3, B3<=99999999),B3, 10000000) -> 10000000 | J10: =IF(AND(100000000<B3, B3<=999999999),B3, 100000000) -> 100000000 | K10: =IF(AND(1000000000<B2,B2<=99999999999999),B2,1000000000) -> 1000000000
B11: Formula: for calculating the actual tax rate of fixed charges expressed as percentages of income (See Row 6 below). For any given "Income Category" (column) divide the "Fixed Charge" (Row 4) by the exact dollar amount being compared (Row 3) and multip[ly by 100 to derive the percentage of that person's income being paid by that "Fixed Charge" Formula
A12: The actual tax rate charged to the various income categories expressed as a percent of one's income (see formula above) | B12: =B8/B10 -> 27500 | C12: 2750 | D12: 275 | E12: 27.5 | F12: 2.75 | G12: 0.275 | H12: 0.0275 | I12: 0.00275 | J12: 0.000275 | K12: 2.75e-05
B13: Formula for calculating the amount more that lower income earners pay in taxes than the higest income people in society: Billionaires.
A14: The amount more that lower income earners pay in a tax system based on fixed charges for the use of the same public resources--Education, Health, GST, Water, etc.-- than those with the highest incomes: i.e. Billionaires. This Includes both individuals and organisations. | B14: =B12/K12 -> 1000000000 | C14: =C12/K12 -> 100000000 | D14: =D12/K12 -> 10000000 | E14: =E12/K12 -> 1000000 | F14: =F12/K12 -> 100000 | G14: =G12/K12 -> 10000 | H14: =H12/K12 -> 1000 | I14: =I12/K12 -> 100 | J14: =J12/K12 -> 10 | K14: =K12/K12 -> 1
B15: =IF(AND(B14=1000000000), CONCATENATE(B14&" or One Billion times more"),CONCATENATE(B14*0.000001&" Million times more")) -> 1000000000 or One Billion times more | C15: =IF(AND(C14=100000000), CONCATENATE(C14&" or One Hundred Million times more"),CONCATENATE(C14*0.000001&" Million times more")) -> 100000000 or One Hundred Million times more | D15: =IF(AND(D14=10000000), CONCATENATE(D14&" or Ten Million times more"),CONCATENATE(D14*0.000001&" Million times more")) -> 10000000 or Ten Million times more | E15: =IF(AND(E14=1000000), CONCATENATE(E14&" or One Million times more"),CONCATENATE(E14*0.00001&" Hundred Thousand times more")) -> 1000000 or One Million times more | F15: =IF(AND(F14=100000), CONCATENATE(F14&" or One Hundred Thousand times more"),CONCATENATE(F14*0.001&" Thousand times more")) -> 100000 or One Hundred Thousand times more | G15: =IF(AND(G14=10000), CONCATENATE(G14&" or Ten Thousand times more"),CONCATENATE(G14*0.001&" Thousand times more")) -> 10000 or Ten Thousand times more | H15: =IF(AND(H14=1000), CONCATENATE(H14&" or One Thousand times more"),CONCATENATE(H14*0.01&" Hundred times more")) -> 1000 or One Thousand times more | I15: =IF(AND(I14=100), CONCATENATE(I14&" or One Hundred times more"),CONCATENATE(I14&" times more")) -> 100 or One Hundred times more | J15: =IF(AND(J14=100), CONCATENATE(J14&" or Ten times more"),CONCATENATE(J14&" times more")) -> 10 times more | K15: Unit Value
A17: Percentage more that lower income earners pay--in a tax system based on fixed charges--for the use of the same public resources than those with the highest incomes: i.e. Billionaires. This includes both individuals and organisations | B17: =(B14-1) -> 999999999 | C17: 99999999 | D17: 9999999 | E17: 999999 | F17: 99999 | G17: 9999 | H17: 999 | I17: 99 | J17: 9 | K17: =(K14-1)*100 -> 0
B18: =CONCATENATE((B17*0.0000001)&" Billion percent more") -> 99.9999999 Billion percent more | C18: =CONCATENATE((C17*0.0000001)&" Billion percent more") -> 9.9999999 Billion percent more | D18: =CONCATENATE((D17*0.0001)&" Million percent more") -> 999.9999 Million percent more | E18: =CONCATENATE((E17*0.0001)&" Million percent more") -> 99.9999 Million percent more | F18: =CONCATENATE((F17*0.0001)&" Million percent more") -> 9.9999 Million percent more | G18: =CONCATENATE((G17*0.1)&" Thousand percent more") -> 999.9 Thousand percent more | H18: =CONCATENATE((H17*0.1)&" Thousand percent more") -> 99.9 Thousand percent more | I18: =CONCATENATE((I17*0.1)&" Thousand percent more") -> 9.9 Thousand percent more | J18: =CONCATENATE((J17)&" Hundred percent more") -> 9 Hundred percent more | K18: 0 percent more
A20: Actual tax cost if Taxed the same Unit percentage charged Billionaires | B20: =K12*B10 -> 2.75e-05 | C20: =K12*C10 -> 0.000275 | D20: =K12*D10 -> 0.00275 | E20: =K12*E10 -> 0.0275 | F20: =K12*F10 -> 0.275 | G20: =K12*G10 -> 2.75 | H20: =K12*H10 -> 27.5 | I20: =K12*I10 -> 275 | J20: =K12*J10 -> 2750 | K20: =K12*K10 -> 27500
A21: Amount of Tax Transfer or Subsidy Paid by lower income earners to the wealthy | B21: =B8-(K12*B10) -> 27499.99997 | C21: =C8-(K12*C10) -> 27499.99973 | D21: =D8-(K12*D10) -> 27499.99725 | E21: =E8-(K12*E10) -> 27499.9725 | F21: =F8-(K12*F10) -> 27499.725 | G21: =G8-(K12*G10) -> 27497.25 | H21: =H8-(K12*H10) -> 27472.5 | I21: =I8-(K12*I10) -> 27225 | J21: =J8-(K12*J10) -> 24750 | K21: =K8-(K12*K10) -> 0
B22: This work is licensed under a Creative Commons Attribution-NonCommercial-NoDerivs 3.0 Unported License. This means you may copy, use, and distribute this programme as you wish for formal or non-formal educational purposes. The limitations are that information from this programme, used in other work, must cite the author and this source. Also this programme may not be sold or modified without the author's expressed permission: Details of license are at http://creativecommons.org/licenses/by-nc-nd/3.0/deed.en_US
A23: Copyright 2006 By Patrick Danahey in c/o C.E.R.E.S. for the Universal Income Trust. Contact addresses: C.E.R.E.S. http://www.c.e.r.e.s.edu@gmail.com; Universal Income Trust: http://www.uitrustnz.org Help end poverty and stop the exploitation of the poor at all levels. This includes all those whose jobs pay less than the legal minimum-wage: whereby one person's income is sufficient to provide for a household.

Sheet Sheet4
A1: Data
A2: 50
A3: 104
A4: Formula | B4: Description (Result)
A5: =AND(1<A2, A2<100) -> TRUE | B5: Because 50 is between 1 and 100 (TRUE)
A6: =IF(AND(1<A3, A3<100), A3, "The value is out of range.") -> The value is out of range. | B6: Displays the second number above, if it is between 1 and 100, otherwise displays a message (The value is out of range.)
A7: =IF(AND(1<A2, A2<100), A2, "The value is out of range.") -> 50 | B7: Displays the first number above, if it is between 1 and 100, otherwise displays a message (50)

Sheet Sheet5
B3: =Sheet1!$K$10 -> 1000000000
B4: =Sheet1!$J$10 -> 100000000
B5: =Sheet1!$I$10 -> 10000000
B6: =Sheet1!$H$10 -> 1000000 | Q6: =B6+C6 -> 1000000
B7: =Sheet1!$G$10 -> 100000
B8: =Sheet1!$F$10 -> 10000

Sheet Sheet2
D11: Subtract B12-C12
A12: Subtract | B12: =Sheet1!$F$14 -> 100000 | C12: =Sheet1!$H$14 -> 1000 | D12: =B12-C12 -> 99000
